[Event "*** SCC Grand Prix: Titled Tuesday Blitz"]
[Site "Chess.com"]
[Date "2020.06.02"]
[Round "10"]
[White "Malysch"]
[Black "Tomytoteph"]
[Result "1-0"]
[WhiteElo "2518"]
[BlackElo "2318"]
[TimeControl "180+1"]
[EndTime "11:55:48 PDT"]
[Termination "Malysch won by resignation"]

1. d4 {[%clk 0:03:00.9]} 1... Nf6 {[%clk 0:02:53.4]} 2. c4 {[%clk 0:03:01.8]}
2... e6 {[%clk 0:02:53.4]} 3. g3 {[%clk 0:02:59.2]} 3... Bb4+ {[%clk 0:02:53.6]}
4. Nd2 {[%clk 0:02:58.6]} 4... O-O {[%clk 0:02:50.6]} 5. Bg2 {[%clk 0:02:58.1]}
5... d5 {[%clk 0:02:48.1]} 6. Nf3 {[%clk 0:02:57.5]} 6... dxc4 {[%clk
0:02:44.7]} 7. Qc2 {[%clk 0:02:56.8]} 7... b5 {[%clk 0:02:44]} 8. a4 {[%clk
0:02:56.3]} 8... c6 {[%clk 0:02:43.4]} 9. axb5 {[%clk 0:02:56.7]} 9... cxb5
{[%clk 0:02:44.3]} 10. Ng5 {[%clk 0:02:56.8]} 10... Bxd2+ {[%clk 0:02:42.9]} 11.
Bxd2 {[%clk 0:02:55]} 11... h6 {[%clk 0:02:41.9]} 12. h4 {[%clk 0:02:53.9]}
12... Qxd4 {[%clk 0:02:15.6]} 13. Bxa8 {[%clk 0:02:49.6]} 13... Nbd7 {[%clk
0:02:11.2]} 14. Bc6 {[%clk 0:02:24.4]} 14... Ne5 {[%clk 0:02:09.3]} 15. Bg2
{[%clk 0:01:57.9]} 15... Neg4 {[%clk 0:02:07.2]} 16. e3 {[%clk 0:01:40.7]} 16...
Qc5 {[%clk 0:02:05.8]} 17. Ne4 {[%clk 0:01:38.9]} 17... Nxe4 {[%clk 0:02:05]}
18. Qxe4 {[%clk 0:01:38.2]} 18... f5 {[%clk 0:02:04.8]} 19. Qd4 {[%clk
0:01:34.5]} 19... Qc7 {[%clk 0:02:04.7]} 20. O-O {[%clk 0:01:32.3]} 20... a6
{[%clk 0:02:03.7]} 21. Bc3 {[%clk 0:01:30.2]} 21... Rd8 {[%clk 0:02:02.9]} 22.
Qf4 {[%clk 0:01:19.9]} 22... e5 {[%clk 0:02:02]} 23. Qf3 {[%clk 0:01:20.1]}
23... Rd3 {[%clk 0:01:50.6]} 24. Rfd1 {[%clk 0:01:11.7]} 24... Qc5 {[%clk
0:01:44.9]} 25. Rxd3 {[%clk 0:00:57.6]} 25... e4 {[%clk 0:01:44.9]} 26. Rd8+
{[%clk 0:00:54.9]} 1-0

[Event "*** SCC Grand Prix: Titled Tuesday Blitz"]
[Site "Chess.com"]
[Date "2020.06.02"]
[Round "10"]
[White "ItsCheckM8Mate"]
[Black "BJthechessgod"]
[Result "1-0"]
[WhiteElo "2251"]
[BlackElo "2071"]
[TimeControl "180+1"]
[EndTime "11:55:52 PDT"]
[Termination "ItsCheckM8Mate won by resignation"]

1. d4 {[%clk 0:03:00.9]} 1... Nf6 {[%clk 0:02:59]} 2. Bf4 {[%clk 0:02:59.5]}
2... e6 {[%clk 0:02:59.9]} 3. Nf3 {[%clk 0:02:59.1]} 3... Be7 {[%clk 0:03:00.2]}
4. e3 {[%clk 0:02:58]} 4... O-O {[%clk 0:03:00.6]} 5. h3 {[%clk 0:02:55.2]} 5...
d5 {[%clk 0:02:57.1]} 6. Nbd2 {[%clk 0:02:54.6]} 6... Nbd7 {[%clk 0:02:55.2]} 7.
Bd3 {[%clk 0:02:53.8]} 7... c5 {[%clk 0:02:55]} 8. c3 {[%clk 0:02:51.3]} 8... b6
{[%clk 0:02:54.3]} 9. O-O {[%clk 0:02:48.5]} 9... Bb7 {[%clk 0:02:53.3]} 10. Ne5
{[%clk 0:02:48]} 10... Nxe5 {[%clk 0:02:52.7]} 11. Bxe5 {[%clk 0:02:42.1]} 11...
Nd7 {[%clk 0:02:44.6]} 12. Bg3 {[%clk 0:02:35.7]} 12... Rc8 {[%clk 0:02:42.7]}
13. e4 {[%clk 0:02:23.1]} 13... cxd4 {[%clk 0:02:39.9]} 14. cxd4 {[%clk
0:02:22.6]} 14... dxe4 {[%clk 0:02:40]} 15. Nxe4 {[%clk 0:02:22.1]} 15... Nf6
{[%clk 0:02:40.1]} 16. Ng5 {[%clk 0:02:16.9]} 16... h6 {[%clk 0:02:36.5]} 17.
Nf3 {[%clk 0:02:15.9]} 17... Bxf3 {[%clk 0:02:07.2]} 18. Qxf3 {[%clk 0:02:05.4]}
18... Qxd4 {[%clk 0:02:04.9]} 19. b3 {[%clk 0:01:37.9]} 19... Rfd8 {[%clk
0:01:45.9]} 20. Rad1 {[%clk 0:01:27.7]} 20... Rc3 {[%clk 0:01:44.4]} 21. Bh7+
{[%clk 0:01:16]} 21... Kxh7 {[%clk 0:01:39.2]} 22. Rxd4 {[%clk 0:01:14.9]} 22...
Rxf3 {[%clk 0:01:39.3]} 23. Rxd8 {[%clk 0:01:14.5]} 23... Rxg3 {[%clk
0:01:37.4]} 24. Ra8 {[%clk 0:01:05.8]} 24... Bd6 {[%clk 0:01:15.3]} 25. fxg3
{[%clk 0:01:04]} 1-0

[Event "*** SCC Grand Prix: Titled Tuesday Blitz"]
[Site "Chess.com"]
[Date "2020.06.02"]
[Round "10"]
[White "MomchilPetkov"]
[Black "Zurability"]
[Result "0-1"]
[WhiteElo "2538"]
[BlackElo "2706"]
[TimeControl "180+1"]
[EndTime "11:56:07 PDT"]
[Termination "Zurability won by resignation"]

1. e4 {[%clk 0:03:00.9]} 1... c5 {[%clk 0:02:59.4]} 2. Nf3 {[%clk 0:03:00.6]}
2... d6 {[%clk 0:03:00]} 3. d4 {[%clk 0:03:00.8]} 3... cxd4 {[%clk 0:03:00.9]}
4. Nxd4 {[%clk 0:03:01.4]} 4... Nf6 {[%clk 0:03:01.8]} 5. Nc3 {[%clk 0:03:00.3]}
5... a6 {[%clk 0:03:02.7]} 6. Bg5 {[%clk 0:02:59.6]} 6... e6 {[%clk 0:03:01.9]}
7. f4 {[%clk 0:02:59.6]} 7... Be7 {[%clk 0:03:01.8]} 8. Qf3 {[%clk 0:02:58.5]}
8... Qc7 {[%clk 0:03:01.9]} 9. O-O-O {[%clk 0:02:57.9]} 9... b5 {[%clk
0:03:01.9]} 10. Bxf6 {[%clk 0:02:53.7]} 10... gxf6 {[%clk 0:02:55.6]} 11. f5
{[%clk 0:02:35.8]} 11... Nc6 {[%clk 0:02:51.4]} 12. fxe6 {[%clk 0:02:31.8]}
12... fxe6 {[%clk 0:02:45.3]} 13. Qh5+ {[%clk 0:02:30.7]} 13... Kd8 {[%clk
0:02:45.7]} 14. Nce2 {[%clk 0:01:43.8]} 14... Bd7 {[%clk 0:02:36.5]} 15. Nxc6+
{[%clk 0:01:41]} 15... Qxc6 {[%clk 0:02:34.4]} 16. Nd4 {[%clk 0:01:41.9]} 16...
Qxe4 {[%clk 0:02:30]} 17. Be2 {[%clk 0:01:27.4]} 17... Rc8 {[%clk 0:02:20.7]}
18. Bf3 {[%clk 0:01:22]} 18... Qe5 {[%clk 0:02:14.2]} 19. Qh3 {[%clk 0:01:12.1]}
19... Rc4 {[%clk 0:02:12.7]} 20. c3 {[%clk 0:00:54.1]} 20... b4 {[%clk
0:02:10.7]} 21. Rhe1 {[%clk 0:00:53.9]} 21... Qf4+ {[%clk 0:02:09.8]} 22. Kc2
{[%clk 0:00:40.9]} 22... bxc3 {[%clk 0:02:07]} 23. Nxe6+ {[%clk 0:00:37.8]}
23... Bxe6 {[%clk 0:02:04]} 24. Qxe6 {[%clk 0:00:38.7]} 24... cxb2+ {[%clk
0:01:59.8]} 25. Kb1 {[%clk 0:00:36.2]} 25... Rc7 {[%clk 0:01:39.4]} 26. Re4
{[%clk 0:00:27.4]} 26... Qc1+ {[%clk 0:01:38.1]} 0-1

[Event "*** SCC Grand Prix: Titled Tuesday Blitz"]
[Site "Chess.com"]
[Date "2020.06.02"]
[Round "10"]
[White "szefru"]
[Black "bratkoo"]
[Result "0-1"]
[WhiteElo "2144"]
[BlackElo "2389"]
[TimeControl "180+1"]
[EndTime "11:56:09 PDT"]
[Termination "bratkoo won by resignation"]

1. e4 {[%clk 0:03:00.7]} 1... e6 {[%clk 0:02:59.9]} 2. d4 {[%clk 0:03:00.3]}
2... d5 {[%clk 0:02:59.9]} 3. Nd2 {[%clk 0:02:58.4]} 3... Nf6 {[%clk 0:02:58.4]}
4. e5 {[%clk 0:02:58.2]} 4... Nfd7 {[%clk 0:02:59.1]} 5. f4 {[%clk 0:02:58.7]}
5... c5 {[%clk 0:03:00]} 6. c3 {[%clk 0:02:59.1]} 6... Nc6 {[%clk 0:03:00.9]} 7.
Ndf3 {[%clk 0:02:59.4]} 7... Qb6 {[%clk 0:03:01]} 8. Ne2 {[%clk 0:02:58.5]} 8...
f6 {[%clk 0:03:01.6]} 9. g3 {[%clk 0:02:52.2]} 9... cxd4 {[%clk 0:03:00.5]} 10.
cxd4 {[%clk 0:02:51.8]} 10... Bb4+ {[%clk 0:03:01]} 11. Kf2 {[%clk 0:02:52.2]}
11... O-O {[%clk 0:02:54.6]} 12. Kg2 {[%clk 0:02:49]} 12... a5 {[%clk
0:02:50.5]} 13. g4 {[%clk 0:02:29.9]} 13... a4 {[%clk 0:02:48.4]} 14. Ng3 {[%clk
0:02:27.7]} 14... fxe5 {[%clk 0:02:47.9]} 15. fxe5 {[%clk 0:02:22.9]} 15... Rxf3
{[%clk 0:02:47.1]} 16. Qxf3 {[%clk 0:02:19.1]} 16... Qxd4 {[%clk 0:02:32.3]} 17.
Be3 {[%clk 0:02:00.4]} 17... Qxb2+ {[%clk 0:02:31]} 18. Be2 {[%clk 0:01:58.8]}
18... Ndxe5 {[%clk 0:02:29.1]} 19. Qf2 {[%clk 0:01:41.2]} 19... d4 {[%clk
0:02:29.3]} 20. Bf4 {[%clk 0:01:33.8]} 20... d3 {[%clk 0:02:29.2]} 21. Bxe5
{[%clk 0:01:09.2]} 21... Nxe5 {[%clk 0:02:22.3]} 22. Rab1 {[%clk 0:01:08.9]}
22... Qxa2 {[%clk 0:02:03.8]} 23. Rxb4 {[%clk 0:01:04]} 23... dxe2 {[%clk
0:02:03.9]} 24. Qxe2 {[%clk 0:00:50.2]} 24... Qd5+ {[%clk 0:02:02.7]} 25. Qe4
{[%clk 0:00:48.5]} 25... Nxg4 {[%clk 0:02:02.5]} 26. Rd1 {[%clk 0:00:40.5]}
26... Ne3+ {[%clk 0:02:01.8]} 27. Kf3 {[%clk 0:00:40.4]} 27... Nxd1 {[%clk
0:02:00.4]} 28. Qxd5 {[%clk 0:00:36.2]} 28... exd5 {[%clk 0:02:01.3]} 29. Ke2
{[%clk 0:00:36.8]} 29... Nc3+ {[%clk 0:01:59.1]} 30. Kd3 {[%clk 0:00:37.1]}
30... a3 {[%clk 0:01:59.5]} 31. Kxc3 {[%clk 0:00:20.3]} 31... a2 {[%clk
0:01:57.6]} 0-1

[Event "*** SCC Grand Prix: Titled Tuesday Blitz"]
[Site "Chess.com"]
[Date "2020.06.02"]
[Round "10"]
[White "Colombiano07"]
[Black "Reality-Stone"]
[Result "1-0"]
[WhiteElo "2365"]
[BlackElo "2478"]
[TimeControl "180+1"]
[EndTime "11:56:10 PDT"]
[Termination "Colombiano07 won by checkmate"]

1. Nf3 {[%clk 0:02:55.2]} 1... d5 {[%clk 0:02:59.3]} 2. b3 {[%clk 0:02:56.1]}
2... c5 {[%clk 0:02:57.9]} 3. Bb2 {[%clk 0:02:57]} 3... f6 {[%clk 0:02:57.8]} 4.
e3 {[%clk 0:02:57.9]} 4... e5 {[%clk 0:02:57.8]} 5. d4 {[%clk 0:02:58.8]} 5...
cxd4 {[%clk 0:02:57.9]} 6. exd4 {[%clk 0:02:59.3]} 6... e4 {[%clk 0:02:58.5]} 7.
Nfd2 {[%clk 0:03:00.1]} 7... f5 {[%clk 0:02:58.6]} 8. Bb5+ {[%clk 0:03:00.5]}
8... Nc6 {[%clk 0:02:58]} 9. O-O {[%clk 0:03:01]} 9... Nf6 {[%clk 0:02:58.2]}
10. f3 {[%clk 0:03:01.5]} 10... Be6 {[%clk 0:02:58.1]} 11. fxe4 {[%clk 0:03:02]}
11... fxe4 {[%clk 0:02:56.8]} 12. c4 {[%clk 0:02:59.7]} 12... a6 {[%clk
0:02:57.3]} 13. cxd5 {[%clk 0:02:57]} 13... Bxd5 {[%clk 0:02:57.3]} 14. Bxc6+
{[%clk 0:02:55.7]} 14... Bxc6 {[%clk 0:02:56.4]} 15. Nc3 {[%clk 0:02:56.3]}
15... Qxd4+ {[%clk 0:02:55]} 16. Kh1 {[%clk 0:02:56.9]} 16... e3 {[%clk
0:02:52.1]} 17. Nc4 {[%clk 0:02:32.3]} 17... Qxd1 {[%clk 0:02:49.8]} 18. Raxd1
{[%clk 0:02:33.2]} 18... Be7 {[%clk 0:02:45.2]} 19. Nxe3 {[%clk 0:02:32.5]}
19... O-O {[%clk 0:02:41.4]} 20. Nf5 {[%clk 0:02:32.9]} 20... Bc5 {[%clk
0:02:41.1]} 21. Na4 {[%clk 0:02:30]} 21... Ba7 {[%clk 0:02:39.6]} 22. Ne7+
{[%clk 0:02:26.6]} 22... Kh8 {[%clk 0:02:40.1]} 23. Nxc6 {[%clk 0:02:27.1]}
23... bxc6 {[%clk 0:02:41]} 24. Bxf6 {[%clk 0:02:24.5]} 24... Rxf6 {[%clk
0:02:40.8]} 25. Rxf6 {[%clk 0:02:24.2]} 25... gxf6 {[%clk 0:02:41.7]} 26. Rd7
{[%clk 0:02:23.5]} 26... Re8 {[%clk 0:02:39.4]} 27. g4 {[%clk 0:02:15.8]} 27...
Re1+ {[%clk 0:02:39.2]} 28. Kg2 {[%clk 0:02:15.7]} 28... Re2+ {[%clk 0:02:35.8]}
29. Kf3 {[%clk 0:02:14.4]} 29... Rf2+ {[%clk 0:02:34.2]} 30. Kg3 {[%clk
0:02:14.9]} 30... Be3 {[%clk 0:02:34.4]} 31. Rd3 {[%clk 0:02:09.7]} 31... Re2
{[%clk 0:02:15.9]} 32. Kf3 {[%clk 0:02:09]} 32... Rxa2 {[%clk 0:02:14.1]} 33.
Rxe3 {[%clk 0:02:06.6]} 33... Rxh2 {[%clk 0:02:14.5]} 34. Kg3 {[%clk 0:02:01.7]}
34... Rc2 {[%clk 0:02:09.5]} 35. Re7 {[%clk 0:01:59.5]} 35... c5 {[%clk
0:02:04]} 36. Rc7 {[%clk 0:01:57]} 36... Re2 {[%clk 0:01:57.9]} 37. Nxc5 {[%clk
0:01:55.1]} 37... a5 {[%clk 0:01:54.2]} 38. Kf4 {[%clk 0:01:53.6]} 38... Rf2+
{[%clk 0:01:53.2]} 39. Ke4 {[%clk 0:01:54]} 39... Rg2 {[%clk 0:01:53.3]} 40. Kf5
{[%clk 0:01:53.9]} 40... Rf2+ {[%clk 0:01:53.5]} 41. Ke6 {[%clk 0:01:53.9]}
41... Rg2 {[%clk 0:01:51.7]} 42. Kxf6 {[%clk 0:01:52.3]} 42... Rxg4 {[%clk
0:01:48.4]} 43. Rc8+ {[%clk 0:01:27.8]} 43... Rg8 {[%clk 0:01:47.8]} 44. Rxg8+
{[%clk 0:01:28.7]} 44... Kxg8 {[%clk 0:01:48.7]} 45. Nb7 {[%clk 0:01:29.6]}
45... h5 {[%clk 0:01:46.8]} 46. Kg5 {[%clk 0:01:29.6]} 46... Kf7 {[%clk
0:01:47.7]} 47. Nxa5 {[%clk 0:01:29.3]} 47... Ke6 {[%clk 0:01:48.6]} 48. Nc4
{[%clk 0:01:28.6]} 48... Kd5 {[%clk 0:01:48.9]} 49. Nd2 {[%clk 0:01:29.1]} 49...
Kc5 {[%clk 0:01:49.1]} 50. Kxh5 {[%clk 0:01:29.4]} 50... Kb4 {[%clk 0:01:49.5]}
51. Kg4 {[%clk 0:01:29.8]} 51... Kc3 {[%clk 0:01:50]} 52. Kf4 {[%clk 0:01:30.1]}
52... Kxd2 {[%clk 0:01:49.9]} 53. b4 {[%clk 0:01:30.2]} 53... Kc3 {[%clk
0:01:49.8]} 54. b5 {[%clk 0:01:31.1]} 54... Kb4 {[%clk 0:01:50.3]} 55. b6 {[%clk
0:01:32]} 55... Ka5 {[%clk 0:01:50.8]} 56. b7 {[%clk 0:01:32.9]} 56... Kb6
{[%clk 0:01:51.3]} 57. b8=Q+ {[%clk 0:01:33.8]} 57... Ka6 {[%clk 0:01:52]} 58.
Ke4 {[%clk 0:01:33.4]} 58... Ka5 {[%clk 0:01:52.9]} 59. Kd4 {[%clk 0:01:34.3]}
59... Ka6 {[%clk 0:01:52.4]} 60. Kc4 {[%clk 0:01:35.2]} 60... Ka5 {[%clk
0:01:52.1]} 61. Qb5# {[%clk 0:01:35.4]} 1-0

[Event "*** SCC Grand Prix: Titled Tuesday Blitz"]
[Site "Chess.com"]
[Date "2020.06.02"]
[Round "10"]
[White "vanImpe"]
[Black "novocane"]
[Result "1-0"]
[WhiteElo "2336"]
[BlackElo "2170"]
[TimeControl "180+1"]
[EndTime "11:56:10 PDT"]
[Termination "vanImpe won by resignation"]

1. g3 {[%clk 0:03:00.9]} 1... e5 {[%clk 0:02:59]} 2. Bg2 {[%clk 0:03:01.2]} 2...
d5 {[%clk 0:02:59.3]} 3. c4 {[%clk 0:03:01.3]} 3... dxc4 {[%clk 0:02:58.5]} 4.
Na3 {[%clk 0:03:00.9]} 4... Bxa3 {[%clk 0:02:43.9]} 5. Qa4+ {[%clk 0:03:00.7]}
5... Bd7 {[%clk 0:02:42.3]} 6. Qxa3 {[%clk 0:03:00.6]} 6... Bc6 {[%clk
0:02:42.1]} 7. Nf3 {[%clk 0:02:59.9]} 7... Ne7 {[%clk 0:02:37.1]} 8. O-O {[%clk
0:02:58.7]} 8... Nd7 {[%clk 0:02:35.4]} 9. Qc3 {[%clk 0:02:45]} 9... b5 {[%clk
0:02:12.8]} 10. Nxe5 {[%clk 0:02:41]} 10... Bxg2 {[%clk 0:02:10.7]} 11. Kxg2
{[%clk 0:02:32.1]} 11... Nxe5 {[%clk 0:02:10.1]} 12. Qxe5 {[%clk 0:02:32.1]}
12... Qd5+ {[%clk 0:02:09.6]} 13. Qxd5 {[%clk 0:02:31.9]} 13... Nxd5 {[%clk
0:02:10.5]} 14. b3 {[%clk 0:02:29.4]} 14... Nb6 {[%clk 0:01:40.7]} 15. bxc4
{[%clk 0:02:26.9]} 15... Nxc4 {[%clk 0:01:40.4]} 16. d3 {[%clk 0:02:26.9]} 16...
Nd6 {[%clk 0:01:40.3]} 17. Bb2 {[%clk 0:02:23.1]} 17... O-O {[%clk 0:01:38.4]}
18. Rfc1 {[%clk 0:02:23.6]} 18... Rfc8 {[%clk 0:01:34.8]} 19. Rc6 {[%clk
0:02:23.6]} 19... b4 {[%clk 0:01:22]} 20. Rac1 {[%clk 0:02:23.1]} 20... Nb5
{[%clk 0:01:22]} 21. R1c5 {[%clk 0:02:18.7]} 21... a6 {[%clk 0:01:22]} 22. Rc4
{[%clk 0:02:18.3]} 22... Na3 {[%clk 0:00:57.1]} 23. Rxb4 {[%clk 0:02:14.9]}
23... Nb5 {[%clk 0:00:56.4]} 24. a4 {[%clk 0:02:10]} 24... Nd6 {[%clk
0:00:55.4]} 25. Be5 {[%clk 0:02:03.5]} 25... a5 {[%clk 0:00:44.6]} 26. Rb2
{[%clk 0:01:56.3]} 26... f6 {[%clk 0:00:37.9]} 27. Bxd6 {[%clk 0:01:54.5]} 27...
cxd6 {[%clk 0:00:38.8]} 28. Rxd6 {[%clk 0:01:54.9]} 28... Rab8 {[%clk
0:00:33.2]} 29. Rxb8 {[%clk 0:01:53.5]} 29... Rxb8 {[%clk 0:00:34.1]} 30. Ra6
{[%clk 0:01:53.6]} 1-0

[Event "*** SCC Grand Prix: Titled Tuesday Blitz"]
[Site "Chess.com"]
[Date "2020.06.02"]
[Round "10"]
[White "AttilaTurzo"]
[Black "Khvicha_Supatashvili"]
[Result "1-0"]
[WhiteElo "2501"]
[BlackElo "2698"]
[TimeControl "180+1"]
[EndTime "11:56:24 PDT"]
[Termination "AttilaTurzo won by checkmate"]

1. e4 {[%clk 0:03:00.9]} 1... c6 {[%clk 0:02:59.5]} 2. d4 {[%clk 0:03:00.6]}
2... d5 {[%clk 0:02:58.5]} 3. Nc3 {[%clk 0:03:01]} 3... dxe4 {[%clk 0:02:57.7]}
4. Nxe4 {[%clk 0:03:01.9]} 4... Bf5 {[%clk 0:02:56.1]} 5. Ng3 {[%clk 0:03:02]}
5... Bg6 {[%clk 0:02:56]} 6. h3 {[%clk 0:03:02.5]} 6... Nf6 {[%clk 0:02:52.6]}
7. Nf3 {[%clk 0:03:01.7]} 7... Nbd7 {[%clk 0:02:52.5]} 8. Nh4 {[%clk 0:02:59.4]}
8... e6 {[%clk 0:02:51.1]} 9. Nxg6 {[%clk 0:02:56.6]} 9... hxg6 {[%clk
0:02:50.6]} 10. c3 {[%clk 0:02:56.9]} 10... Bd6 {[%clk 0:02:50]} 11. Qf3 {[%clk
0:02:53.4]} 11... Qc7 {[%clk 0:02:36.5]} 12. Ne4 {[%clk 0:02:50.6]} 12... Nxe4
{[%clk 0:02:36.8]} 13. Qxe4 {[%clk 0:02:51.5]} 13... Nf6 {[%clk 0:02:36.8]} 14.
Qf3 {[%clk 0:02:41.1]} 14... e5 {[%clk 0:02:34.9]} 15. dxe5 {[%clk 0:02:38.8]}
15... Bxe5 {[%clk 0:02:35.1]} 16. Bd2 {[%clk 0:02:30.2]} 16... O-O-O {[%clk
0:02:33.5]} 17. O-O-O {[%clk 0:02:30.2]} 17... Rh4 {[%clk 0:02:28.2]} 18. Kb1
{[%clk 0:02:16.8]} 18... Ra4 {[%clk 0:02:19.1]} 19. Bc1 {[%clk 0:02:06.4]} 19...
Rxd1 {[%clk 0:02:13.8]} 20. Qxd1 {[%clk 0:02:05.8]} 20... Qa5 {[%clk 0:02:11.6]}
21. b4 {[%clk 0:01:50.8]} 21... Nd5 {[%clk 0:02:04.5]} 22. bxa5 {[%clk
0:01:37.5]} 22... Nxc3+ {[%clk 0:02:03.1]} 23. Kc2 {[%clk 0:01:37.9]} 23... Nxd1
{[%clk 0:02:01.6]} 24. Kxd1 {[%clk 0:01:38.8]} 24... Rxa2 {[%clk 0:01:59.7]} 25.
Bc4 {[%clk 0:01:35.6]} 25... Rxf2 {[%clk 0:01:54.3]} 26. Rf1 {[%clk 0:01:35.2]}
26... Rxg2 {[%clk 0:01:53.5]} 27. Rxf7 {[%clk 0:01:33.2]} 27... a6 {[%clk
0:01:51.7]} 28. Be3 {[%clk 0:01:23.9]} 28... Bc7 {[%clk 0:01:12.7]} 29. Be6+
{[%clk 0:01:14.8]} 29... Kd8 {[%clk 0:01:11.2]} 30. Bc5 {[%clk 0:01:09.3]} 30...
Bxa5 {[%clk 0:00:56.2]} 31. Rf8+ {[%clk 0:01:08.9]} 31... Kc7 {[%clk 0:00:55.6]}
32. Rc8# {[%clk 0:01:09]} 1-0

[Event "*** SCC Grand Prix: Titled Tuesday Blitz"]
[Site "Chess.com"]
[Date "2020.06.02"]
[Round "10"]
[White "Anton_Demchenko"]
[Black "WPWPWP-2015"]
[Result "1-0"]
[WhiteElo "2807"]
[BlackElo "2378"]
[TimeControl "180+1"]
[EndTime "11:56:25 PDT"]
[Termination "Anton_Demchenko won by resignation"]

1. d4 {[%clk 0:03:00.9]} 1... Nf6 {[%clk 0:02:59]} 2. Nf3 {[%clk 0:03:00.4]}
2... d5 {[%clk 0:02:58.5]} 3. Bf4 {[%clk 0:03:00.5]} 3... Bf5 {[%clk 0:02:56.6]}
4. c4 {[%clk 0:03:00.3]} 4... e6 {[%clk 0:02:55.7]} 5. Qb3 {[%clk 0:03:00.5]}
5... Qc8 {[%clk 0:02:55.2]} 6. e3 {[%clk 0:03:00.1]} 6... c6 {[%clk 0:02:54.8]}
7. Nc3 {[%clk 0:03:00.1]} 7... Nbd7 {[%clk 0:02:52.6]} 8. Nh4 {[%clk 0:02:59]}
8... Bg4 {[%clk 0:02:42.6]} 9. h3 {[%clk 0:02:59.1]} 9... Bh5 {[%clk 0:02:42.2]}
10. g4 {[%clk 0:02:59.7]} 10... Bg6 {[%clk 0:02:42.3]} 11. Rc1 {[%clk
0:02:59.7]} 11... dxc4 {[%clk 0:02:39.3]} 12. Bxc4 {[%clk 0:02:59.2]} 12... Nb6
{[%clk 0:02:37.1]} 13. Be2 {[%clk 0:02:58.7]} 13... Qd7 {[%clk 0:02:34.1]} 14.
g5 {[%clk 0:02:42.6]} 14... Nfd5 {[%clk 0:02:28.8]} 15. Bg3 {[%clk 0:02:41.9]}
15... Nxc3 {[%clk 0:02:22.2]} 16. bxc3 {[%clk 0:02:41.6]} 16... Be7 {[%clk
0:02:18.8]} 17. Nxg6 {[%clk 0:02:33]} 17... hxg6 {[%clk 0:02:17.8]} 18. f4
{[%clk 0:02:33.8]} 18... Qd5 {[%clk 0:01:44.4]} 19. Kf2 {[%clk 0:02:32.8]} 19...
Qxb3 {[%clk 0:01:30.7]} 20. axb3 {[%clk 0:02:32.8]} 20... a6 {[%clk 0:01:30]}
21. h4 {[%clk 0:02:29.4]} 21... Rd8 {[%clk 0:01:28.6]} 22. h5 {[%clk 0:02:26.1]}
22... gxh5 {[%clk 0:01:27.3]} 23. Bxh5 {[%clk 0:02:26.4]} 23... g6 {[%clk
0:01:24.9]} 24. Bf3 {[%clk 0:02:25.5]} 24... Kd7 {[%clk 0:01:24.6]} 25. c4
{[%clk 0:02:24]} 25... Nc8 {[%clk 0:01:22]} 26. Ke2 {[%clk 0:02:21.2]} 26... Nd6
{[%clk 0:01:20.6]} 27. e4 {[%clk 0:02:20.3]} 27... Rde8 {[%clk 0:01:12.4]} 28.
Kd3 {[%clk 0:02:17.9]} 28... Bd8 {[%clk 0:01:05]} 29. Bf2 {[%clk 0:02:17.3]}
29... Bc7 {[%clk 0:01:03.8]} 30. e5 {[%clk 0:02:16.2]} 30... Nf5 {[%clk
0:01:03.1]} 31. d5 {[%clk 0:02:16.2]} 31... Bd8 {[%clk 0:00:24]} 32. d6 {[%clk
0:02:12.8]} 32... Reg8 {[%clk 0:00:23]} 33. b4 {[%clk 0:02:10.1]} 33... Re8
{[%clk 0:00:10.8]} 34. b5 {[%clk 0:02:10]} 34... axb5 {[%clk 0:00:09.6]} 35.
cxb5 {[%clk 0:02:10.6]} 35... Rxh1 {[%clk 0:00:06]} 36. bxc6+ {[%clk 0:02:10.2]}
36... bxc6 {[%clk 0:00:04]} 37. Bxc6+ {[%clk 0:02:11.1]} 1-0

[Event "*** SCC Grand Prix: Titled Tuesday Blitz"]
[Site "Chess.com"]
[Date "2020.06.02"]
[Round "10"]
[White "fabianvivasz"]
[Black "jonaszmb"]
[Result "0-1"]
[WhiteElo "2279"]
[BlackElo "2435"]
[TimeControl "180+1"]
[EndTime "11:56:25 PDT"]
[Termination "jonaszmb won on time"]

1. e4 {[%clk 0:02:58.2]} 1... c5 {[%clk 0:03:00.4]} 2. Nc3 {[%clk 0:02:56.4]}
2... a6 {[%clk 0:02:59.9]} 3. Nf3 {[%clk 0:02:50]} 3... d6 {[%clk 0:03:00.2]} 4.
d4 {[%clk 0:02:50.3]} 4... cxd4 {[%clk 0:03:01.1]} 5. Nxd4 {[%clk 0:02:51.2]}
5... Nf6 {[%clk 0:03:01.7]} 6. h3 {[%clk 0:02:49.1]} 6... g6 {[%clk 0:02:59.8]}
7. Be3 {[%clk 0:02:39.1]} 7... Bg7 {[%clk 0:02:58.7]} 8. Qd2 {[%clk 0:02:39.6]}
8... Nc6 {[%clk 0:02:56]} 9. O-O-O {[%clk 0:02:33.6]} 9... Bd7 {[%clk
0:02:51.9]} 10. g4 {[%clk 0:02:08.4]} 10... Rc8 {[%clk 0:02:48.2]} 11. g5 {[%clk
0:02:05.2]} 11... Nh5 {[%clk 0:02:35.8]} 12. Be2 {[%clk 0:02:00.3]} 12... Ne5
{[%clk 0:02:35.4]} 13. Bxh5 {[%clk 0:01:41.5]} 13... Nc4 {[%clk 0:02:33.5]} 14.
Qd3 {[%clk 0:01:35.4]} 14... gxh5 {[%clk 0:02:19]} 15. Nd5 {[%clk 0:00:45.8]}
15... b5 {[%clk 0:02:16]} 16. c3 {[%clk 0:00:36.2]} 16... e6 {[%clk 0:02:07.6]}
17. Nf4 {[%clk 0:00:18.3]} 17... b4 {[%clk 0:01:58.4]} 18. Nxh5 {[%clk 0:00:18]}
18... Be5 {[%clk 0:01:54.4]} 19. f4 {[%clk 0:00:03.1]} 19... bxc3 {[%clk
0:01:52.1]} 20. fxe5 {[%clk 0:00:02.1]} 20... dxe5 {[%clk 0:01:42.7]} 0-1